[Event "Live Chess"]
[Site "Chess.com"]
[Date "2021.02.10"]
[Round "1"]
[White "adichi"]
[Black "nmbrown2"]
[Result "0-1"]
[CurrentPosition "8/8/8/1p6/1P6/2P3pk/8/4q2K w - -"]
[Timezone "UTC"]
[ECO "A45"]
[ECOUrl "https://www.chess.com/openings/Indian-Game"]
[UTCDate "2021.02.10"]
[UTCTime "02:31:36"]
[WhiteElo "1404"]
[BlackElo "1457"]
[TimeControl "2100+2"]
[Termination "nmbrown2 won by checkmate"]
[StartTime "02:31:36"]
[EndDate "2021.02.10"]
[EndTime "03:40:30"]
[Link "https://www.chess.com/live/game/6507737432"]

1. d4 {[%clk 0:35:00.3]} 1... Nf6 {[%clk 0:34:57.2]} 2. Bf4 {[%clk 0:34:59]} 2... g6 {[%clk 0:34:26]} 3. e3 {[%clk 0:34:56.9]} 3... d5 {[%clk 0:34:16.4]} 4. Nc3 {[%clk 0:34:47.2]} 4... a6 {[%clk 0:34:02.3]} 5. Nf3 {[%clk 0:34:40.2]} 5... Bg7 {[%clk 0:33:56.2]} 6. Be2 {[%clk 0:34:32.6]} 6... O-O {[%clk 0:33:55.1]} 7. h4 {[%clk 0:34:30.1]} 7... Bg4 {[%clk 0:33:16.5]} 8. Ne5 {[%clk 0:34:25.1]} 8... Bxe2 {[%clk 0:33:02.1]} 9. Qxe2 {[%clk 0:34:22.6]} 9... Nbd7 {[%clk 0:32:53.4]} 10. O-O-O {[%clk 0:34:21.6]} 10... Rc8 {[%clk 0:32:45.5]} 11. g4 {[%clk 0:34:16.5]} 11... c5 {[%clk 0:32:08.7]} 12. h5 {[%clk 0:34:04.6]} 12... cxd4 {[%clk 0:31:28.2]} 13. exd4 {[%clk 0:33:55.5]} 13... e6 {[%clk 0:30:56.8]} 14. f3 {[%clk 0:32:09.9]} 14... Ne8 {[%clk 0:27:49.8]} 15. hxg6 {[%clk 0:31:47.4]} 15... fxg6 {[%clk 0:27:42.5]} 16. Qh2 {[%clk 0:31:02.1]} 16... Nef6 {[%clk 0:27:21.6]} 17. Ne2 {[%clk 0:29:20]} 17... Re8 {[%clk 0:27:07.6]} 18. Ng3 {[%clk 0:29:01.3]} 18... Nf8 {[%clk 0:26:53.9]} 19. Bh6 {[%clk 0:26:28.1]} 19... Bxh6+ {[%clk 0:26:31.8]} 20. Qxh6 {[%clk 0:26:12.7]} 20... Qc7 {[%clk 0:25:56.8]} 21. Rd2 {[%clk 0:24:23.7]} 21... Qg7 {[%clk 0:24:43.3]} 22. Qxg7+ {[%clk 0:20:17]} 22... Kxg7 {[%clk 0:24:39]} 23. g5 {[%clk 0:20:14.8]} 23... N6d7 {[%clk 0:23:56.3]} 24. f4 {[%clk 0:19:54.1]} 24... Nxe5 {[%clk 0:23:45.4]} 25. dxe5 {[%clk 0:19:30.7]} 25... Nd7 {[%clk 0:23:31.6]} 26. Rdh2 {[%clk 0:19:14.4]} 26... Nf8 {[%clk 0:23:14.1]} 27. c3 {[%clk 0:18:53.7]} 27... Rc4 {[%clk 0:23:05.2]} 28. Rh4 {[%clk 0:18:33.4]} 28... Rd8 {[%clk 0:21:13.4]} 29. Ne2 {[%clk 0:17:54.1]} 29... b5 {[%clk 0:21:00.6]} 30. a3 {[%clk 0:17:11]} 30... d4 {[%clk 0:19:24.1]} 31. f5 {[%clk 0:10:14.5]} 31... exf5 {[%clk 0:18:42.6]} 32. Nxd4 {[%clk 0:09:02.5]} 32... Re8 {[%clk 0:17:54]} 33. e6 {[%clk 0:08:28.4]} 33... Re7 {[%clk 0:17:21.5]} 34. Re1 {[%clk 0:05:45.4]} 34... Kg8 {[%clk 0:16:48.7]} 35. Rh2 {[%clk 0:03:31]} 35... Rc8 {[%clk 0:15:20.6]} 36. Rhe2 {[%clk 0:03:28.8]} 36... Rce8 {[%clk 0:14:53.6]} 37. b3 {[%clk 0:03:10.9]} 37... Rc8 {[%clk 0:14:25.6]} 38. Kb2 {[%clk 0:03:07.9]} 38... Kg7 {[%clk 0:13:31.7]} 39. b4 {[%clk 0:02:59.4]} 39... h5 {[%clk 0:12:54.4]} 40. Re5 {[%clk 0:02:47.7]} 40... Rce8 {[%clk 0:12:18.4]} 41. R1e2 {[%clk 0:02:44.7]} 41... Nh7 {[%clk 0:11:27.7]} 42. Rg2 {[%clk 0:02:41.1]} 42... Nf8 {[%clk 0:10:55.3]} 43. Rge2 {[%clk 0:02:39.8]} 43... h4 {[%clk 0:10:47.2]} 44. Kb3 {[%clk 0:02:37.2]} 44... h3 {[%clk 0:10:40.1]} 45. Rh2 {[%clk 0:02:34.1]} 45... Nxe6 {[%clk 0:10:11.7]} 46. Nxe6+ {[%clk 0:02:33.8]} 46... Rxe6 {[%clk 0:10:10.5]} 47. Rxe6 {[%clk 0:02:34.5]} 47... Rxe6 {[%clk 0:10:10.5]} 48. Rxh3 {[%clk 0:02:35.5]} 48... f4 {[%clk 0:09:54.6]} 49. Rf3 {[%clk 0:02:34]} 49... Re4 {[%clk 0:09:27.9]} 50. a4 {[%clk 0:02:33.2]} 50... Kf7 {[%clk 0:09:14]} 51. axb5 {[%clk 0:02:32]} 51... axb5 {[%clk 0:09:13]} 52. Kc2 {[%clk 0:02:29.6]} 52... Ke6 {[%clk 0:09:10.2]} 53. Kd3 {[%clk 0:02:30.2]} 53... Kf5 {[%clk 0:09:05.3]} 54. Rh3 {[%clk 0:02:26]} 54... Rc4 {[%clk 0:08:40.1]} 55. Rf3 {[%clk 0:02:25.9]} 55... Kxg5 {[%clk 0:08:02.2]} 56. Ke2 {[%clk 0:02:25.1]} 56... Kf5 {[%clk 0:07:52.3]} 57. Rh3 {[%clk 0:02:22.1]} 57... g5 {[%clk 0:07:50]} 58. Kf2 {[%clk 0:02:16.6]} 58... Kg4 {[%clk 0:07:34.5]} 59. Rf3 {[%clk 0:02:15.5]} 59... Kh4 {[%clk 0:07:04.4]} 60. Rd3 {[%clk 0:02:15.5]} 60... g4 {[%clk 0:06:53.1]} 61. Kg2 {[%clk 0:02:15.5]} 61... f3+ {[%clk 0:06:38.8]} 62. Kf2 {[%clk 0:02:16]} 62... Re4 {[%clk 0:06:23.8]} 63. Rd2 {[%clk 0:02:14]} 63... Rc4 {[%clk 0:06:02.4]} 64. Rd3 {[%clk 0:02:11.6]} 64... Kh3 {[%clk 0:05:39.9]} 65. Kg1 {[%clk 0:02:09.8]} 65... Re4 {[%clk 0:05:16.9]} 66. Rd1 {[%clk 0:02:08.9]} 66... g3 {[%clk 0:05:00.2]} 67. Kh1 {[%clk 0:02:00.5]} 67... f2 {[%clk 0:04:41.8]} 68. Rf1 {[%clk 0:01:51.6]} 68... Re1 {[%clk 0:04:30.3]} 69. Rxe1 {[%clk 0:01:48.5]} 69... fxe1=Q# {[%clk 0:04:28.6]} 0-1

[Event "Live Chess"]
[Site "Chess.com"]
[Date "2021.02.10"]
[Round "1"]
[White "dum2020arEEEWS"]
[Black "Daniel_Perlov"]
[Result "0-1"]
[CurrentPosition "8/8/4p3/4Pp2/6qK/8/5k2/8 w - -"]
[Timezone "UTC"]
[ECO "B23"]
[ECOUrl "https://www.chess.com/openings/Sicilian-Defense-Closed-Traditional-Line-3.Bb5"]
[UTCDate "2021.02.10"]
[UTCTime "02:31:24"]
[WhiteElo "1428"]
[BlackElo "1850"]
[TimeControl "2100+2"]
[Termination "Daniel_Perlov won by checkmate"]
[StartTime "02:31:24"]
[EndDate "2021.02.10"]
[EndTime "02:59:59"]
[Link "https://www.chess.com/live/game/6507738124"]

1. e4 {[%clk 0:35:00.7]} 1... c5 {[%clk 0:35:00.3]} 2. Nc3 {[%clk 0:35:00.7]} 2... Nc6 {[%clk 0:34:57.9]} 3. Bb5 {[%clk 0:35:00.1]} 3... g6 {[%clk 0:34:52.1]} 4. Bxc6 {[%clk 0:34:58.8]} 4... bxc6 {[%clk 0:34:50.4]} 5. d3 {[%clk 0:34:53.1]} 5... Bg7 {[%clk 0:34:47.1]} 6. Be3 {[%clk 0:34:45.6]} 6... d6 {[%clk 0:34:46]} 7. Qd2 {[%clk 0:34:44.3]} 7... Nf6 {[%clk 0:34:46.3]} 8. Bh6 {[%clk 0:34:41.3]} 8... O-O {[%clk 0:34:47.7]} 9. Bxg7 {[%clk 0:34:42]} 9... Kxg7 {[%clk 0:34:48.8]} 10. Nf3 {[%clk 0:34:42.2]} 10... Bg4 {[%clk 0:34:27.6]} 11. Qe3 {[%clk 0:34:34.1]} 11... Qb6 {[%clk 0:34:10]} 12. Rb1 {[%clk 0:33:45.4]} 12... Nd7 {[%clk 0:33:31.5]} 13. O-O {[%clk 0:33:20.4]} 13... Bxf3 {[%clk 0:33:21.4]} 14. Qxf3 {[%clk 0:33:18.6]} 14... Ne5 {[%clk 0:32:59.7]} 15. Qe3 {[%clk 0:33:07.9]} 15... Rfd8 {[%clk 0:32:07.7]} 16. f4 {[%clk 0:32:52.7]} 16... Ng4 {[%clk 0:31:47.1]} 17. Qe2 {[%clk 0:31:23.5]} 17... c4+ {[%clk 0:31:42.6]} 18. Kh1 {[%clk 0:31:22.1]} 18... cxd3 {[%clk 0:31:13.8]} 19. cxd3 {[%clk 0:30:21]} 19... Ne3 {[%clk 0:27:26.3]} 20. Rfe1 {[%clk 0:29:13.9]} 20... d5 {[%clk 0:26:43.6]} 21. Qxe3 {[%clk 0:29:07.5]} 21... d4 {[%clk 0:26:44.8]} 22. Qg3 {[%clk 0:28:56.5]} 22... dxc3 {[%clk 0:26:39.9]} 23. bxc3 {[%clk 0:28:56.6]} 23... Qa6 {[%clk 0:26:21.2]} 24. Qe3 {[%clk 0:27:46.8]} 24... Qxd3 {[%clk 0:26:01.2]} 25. Qxd3 {[%clk 0:27:34.3]} 25... Rxd3 {[%clk 0:25:58.5]} 26. c4 {[%clk 0:27:07.6]} 26... Rad8 {[%clk 0:25:10.5]} 27. g3 {[%clk 0:26:31.7]} 27... Rd2 {[%clk 0:25:07]} 28. Ra1 {[%clk 0:26:07.5]} 28... Rc2 {[%clk 0:24:56.5]} 29. Rec1 {[%clk 0:26:01.5]} 29... Rdd2 {[%clk 0:24:56.1]} 30. a3 {[%clk 0:25:41.8]} 30... Rxh2+ {[%clk 0:24:43.8]} 31. Kg1 {[%clk 0:25:41.6]} 31... Rcg2+ {[%clk 0:23:59.9]} 32. Kf1 {[%clk 0:25:40.9]} 32... Rxg3 {[%clk 0:23:59.4]} 33. Rd1 {[%clk 0:25:31.9]} 33... Rh1+ {[%clk 0:23:54.3]} 34. Kf2 {[%clk 0:25:32.6]} 34... Rxd1 {[%clk 0:23:55.2]} 35. Rxd1 {[%clk 0:25:33.9]} 35... Rxa3 {[%clk 0:23:56]} 36. Rd7 {[%clk 0:25:33.3]} 36... e6 {[%clk 0:23:45.6]} 37. Rc7 {[%clk 0:25:22.8]} 37... a5 {[%clk 0:23:46.7]} 38. Rxc6 {[%clk 0:25:18.3]} 38... a4 {[%clk 0:23:47.8]} 39. Ra6 {[%clk 0:25:19.3]} 39... Ra1 {[%clk 0:23:48.7]} 40. Ke2 {[%clk 0:25:19.9]} 40... a3 {[%clk 0:23:49.7]} 41. Kd2 {[%clk 0:25:19.6]} 41... a2 {[%clk 0:23:50.8]} 42. Kc2 {[%clk 0:25:20.9]} 42... Rh1 {[%clk 0:23:43.8]} 43. Rxa2 {[%clk 0:25:06.3]} 43... Rh2+ {[%clk 0:23:44.3]} 44. Kb3 {[%clk 0:25:06.7]} 44... Rxa2 {[%clk 0:23:45.6]} 45. Kxa2 {[%clk 0:25:07.3]} 45... Kf8 {[%clk 0:23:46.4]} 46. Kb3 {[%clk 0:25:08.3]} 46... Ke7 {[%clk 0:23:36.5]} 47. Kc3 {[%clk 0:25:05.9]} 47... h5 {[%clk 0:23:35.1]} 48. Kd3 {[%clk 0:25:05]} 48... Kd6 {[%clk 0:23:34.2]} 49. Kd4 {[%clk 0:24:57.5]} 49... f6 {[%clk 0:23:24.6]} 50. c5+ {[%clk 0:24:10.5]} 50... Kc6 {[%clk 0:23:21]} 51. e5 {[%clk 0:23:57.4]} 51... f5 {[%clk 0:23:20.5]} 52. Ke3 {[%clk 0:23:45.5]} 52... Kxc5 {[%clk 0:23:21.6]} 53. Kf3 {[%clk 0:23:46.2]} 53... Kc4 {[%clk 0:23:19.6]} 54. Ke2 {[%clk 0:23:34.4]} 54... Kd4 {[%clk 0:23:20]} 55. Kf3 {[%clk 0:23:32.9]} 55... Kd3 {[%clk 0:23:19.4]} 56. Kf2 {[%clk 0:23:30.5]} 56... Ke4 {[%clk 0:23:20.5]} 57. Kg3 {[%clk 0:23:30.6]} 57... Ke3 {[%clk 0:23:21.9]} 58. Kh4 {[%clk 0:23:29.4]} 58... Kxf4 {[%clk 0:23:22.4]} 59. Kh3 {[%clk 0:23:29.4]} 59... g5 {[%clk 0:23:23.2]} 60. Kh2 {[%clk 0:23:30]} 60... Kf3 {[%clk 0:23:23]} 61. Kh1 {[%clk 0:23:27]} 61... Kf2 {[%clk 0:23:23.3]} 62. Kh2 {[%clk 0:23:27.3]} 62... g4 {[%clk 0:23:17.4]} 63. Kh1 {[%clk 0:23:27.1]} 63... Kf3 {[%clk 0:23:16.2]} 64. Kh2 {[%clk 0:23:26.8]} 64... g3+ {[%clk 0:23:16.2]} 65. Kh1 {[%clk 0:23:27.7]} 65... g2+ {[%clk 0:23:16.9]} 66. Kg1 {[%clk 0:23:28.5]} 66... h4 {[%clk 0:23:14.3]} 67. Kh2 {[%clk 0:23:28.1]} 67... Kf2 {[%clk 0:23:14.3]} 68. Kh3 {[%clk 0:23:26.7]} 68... g1=Q {[%clk 0:23:14.5]} 69. Kxh4 {[%clk 0:23:21]} 69... Qg4# {[%clk 0:23:15.3]} 0-1

[Event "Live Chess"]
[Site "Chess.com"]
[Date "2021.02.10"]
[Round "1"]
[White "jah23"]
[Black "dribbler23"]
[Result "1-0"]
[CurrentPosition "r1b4R/p1b2pPk/6rB/3N3Q/8/P6n/2q3P1/1R5K b - -"]
[Timezone "UTC"]
[ECO "D31"]
[ECOUrl "https://www.chess.com/openings/Queens-Gambit-Declined-Semi-Slav-Defense-Accelerated-Move-Order"]
[UTCDate "2021.02.10"]
[UTCTime "02:31:50"]
[WhiteElo "1459"]
[BlackElo "1525"]
[TimeControl "2100+2"]
[Termination "jah23 won by checkmate"]
[StartTime "02:31:50"]
[EndDate "2021.02.10"]
[EndTime "03:16:18"]
[Link "https://www.chess.com/live/game/6507738407"]

1. d4 {[%clk 0:34:59.3]} 1... d5 {[%clk 0:34:57.8]} 2. c4 {[%clk 0:34:56.4]} 2... c6 {[%clk 0:34:41]} 3. Nc3 {[%clk 0:34:50.7]} 3... e6 {[%clk 0:34:31.4]} 4. Nf3 {[%clk 0:34:41.2]} 4... Bb4 {[%clk 0:34:17.1]} 5. Bd2 {[%clk 0:34:00.8]} 5... Nf6 {[%clk 0:34:13.8]} 6. a3 {[%clk 0:33:53]} 6... Ba5 {[%clk 0:34:01.8]} 7. b4 {[%clk 0:33:46.6]} 7... Bc7 {[%clk 0:34:02]} 8. c5 {[%clk 0:32:16.8]} 8... O-O {[%clk 0:33:40.2]} 9. e3 {[%clk 0:32:07.5]} 9... b6 {[%clk 0:33:22.4]} 10. Bd3 {[%clk 0:31:58.7]} 10... bxc5 {[%clk 0:33:20.5]} 11. bxc5 {[%clk 0:31:50.1]} 11... Bb7 {[%clk 0:33:05.9]} 12. Rb1 {[%clk 0:30:04.4]} 12... Bc8 {[%clk 0:32:51.4]} 13. O-O {[%clk 0:29:36.3]} 13... h6 {[%clk 0:32:50]} 14. h3 {[%clk 0:26:24.6]} 14... Nbd7 {[%clk 0:32:40.1]} 15. Re1 {[%clk 0:25:34.8]} 15... e5 {[%clk 0:31:53.4]} 16. e4 {[%clk 0:21:37.3]} 16... exd4 {[%clk 0:31:10.7]} 17. Nxd4 {[%clk 0:21:28.7]} 17... Nxc5 {[%clk 0:31:06.5]} 18. Nxc6 {[%clk 0:20:37.3]} 18... Qd6 {[%clk 0:30:52.3]} 19. e5 {[%clk 0:17:02.3]} 19... Qxc6 {[%clk 0:29:54.4]} 20. exf6 {[%clk 0:17:01.3]} 20... Nxd3 {[%clk 0:29:54.4]} 21. fxg7 {[%clk 0:14:56.6]} 21... Rd8 {[%clk 0:29:53.8]} 22. Qh5 {[%clk 0:10:55.9]} 22... Rd6 {[%clk 0:28:23.7]} 23. Re7 {[%clk 0:10:32.5]} 23... Rg6 {[%clk 0:27:05.3]} 24. Bxh6 {[%clk 0:08:53.2]} 24... Nxf2 {[%clk 0:26:23.8]} 25. Nxd5 {[%clk 0:07:40.9]} 25... Nxh3+ {[%clk 0:25:20]} 26. Kh1 {[%clk 0:07:01.5]} 26... Qc2 {[%clk 0:21:43.6]} 27. Re8+ {[%clk 0:06:41]} 27... Kh7 {[%clk 0:20:55.9]} 28. Rh8# {[%clk 0:06:40.2]} 1-0

[Event "Live Chess"]
[Site "Chess.com"]
[Date "2021.02.10"]
[Round "1"]
[White "vincitore51745"]
[Black "echecsmike"]
[Result "1/2-1/2"]
[CurrentPosition "8/4k3/8/4K3/8/8/8/8 b - -"]
[Timezone "UTC"]
[ECO "A20"]
[ECOUrl "https://www.chess.com/openings/English-Opening-Kings-English-Variation-2.g3"]
[UTCDate "2021.02.10"]
[UTCTime "02:42:21"]
[WhiteElo "1083"]
[BlackElo "1301"]
[TimeControl "2100+2"]
[Termination "Game drawn by insufficient material"]
[StartTime "02:42:21"]
[EndDate "2021.02.10"]
[EndTime "03:36:16"]
[Link "https://www.chess.com/live/game/6507801915"]

1. c4 {[%clk 0:34:52.4]} 1... e5 {[%clk 0:34:54]} 2. g3 {[%clk 0:34:45]} 2... Bc5 {[%clk 0:34:46.1]} 3. Bg2 {[%clk 0:34:38.2]} 3... Nf6 {[%clk 0:34:17.6]} 4. Nc3 {[%clk 0:34:32.2]} 4... Nc6 {[%clk 0:33:42.7]} 5. Nf3 {[%clk 0:34:21.3]} 5... O-O {[%clk 0:33:41.4]} 6. O-O {[%clk 0:34:17.7]} 6... d6 {[%clk 0:33:17.2]} 7. e3 {[%clk 0:33:27.7]} 7... d5 {[%clk 0:30:40.1]} 8. d4 {[%clk 0:31:59.7]} 8... exd4 {[%clk 0:29:27.5]} 9. exd4 {[%clk 0:31:53.3]} 9... Be7 {[%clk 0:28:30.9]} 10. c5 {[%clk 0:31:19.2]} 10... Bg4 {[%clk 0:27:58.7]} 11. Qc2 {[%clk 0:30:56.9]} 11... b6 {[%clk 0:26:42.8]} 12. Ng5 {[%clk 0:28:57.1]} 12... Nxd4 {[%clk 0:26:21.2]} 13. Qd3 {[%clk 0:27:51.5]} 13... bxc5 {[%clk 0:25:55.3]} 14. Nxd5 {[%clk 0:27:19.7]} 14... g6 {[%clk 0:25:17.4]} 15. Nxe7+ {[%clk 0:26:27.7]} 15... Qxe7 {[%clk 0:25:01.6]} 16. Bxa8 {[%clk 0:26:12.1]} 16... Be2 {[%clk 0:24:51]} 17. Qe3 {[%clk 0:24:36.5]} 17... Qxe3 {[%clk 0:23:41]} 18. Bxe3 {[%clk 0:24:30.2]} 18... Bxf1 {[%clk 0:23:38.1]} 19. Kxf1 {[%clk 0:23:40.7]} 19... Rxa8 {[%clk 0:23:35.4]} 20. Bxd4 {[%clk 0:22:38.3]} 20... cxd4 {[%clk 0:23:32.7]} 21. Rd1 {[%clk 0:22:13]} 21... c5 {[%clk 0:23:30.4]} 22. b3 {[%clk 0:21:48.8]} 22... Re8 {[%clk 0:23:19.2]} 23. Nf3 {[%clk 0:21:20.2]} 23... Ne4 {[%clk 0:23:09.1]} 24. Re1 {[%clk 0:20:23.6]} 24... f5 {[%clk 0:22:28.8]} 25. Ng5 {[%clk 0:19:54.4]} 25... h6 {[%clk 0:21:34.9]} 26. f3 {[%clk 0:19:15.7]} 26... hxg5 {[%clk 0:21:24.9]} 27. fxe4 {[%clk 0:19:07.7]} 27... fxe4 {[%clk 0:21:23.1]} 28. g4 {[%clk 0:18:38.1]} 28... a5 {[%clk 0:21:06.7]} 29. Ke2 {[%clk 0:17:29.4]} 29... Kf7 {[%clk 0:20:56.8]} 30. Rc1 {[%clk 0:16:53]} 30... Re5 {[%clk 0:20:48.2]} 31. a4 {[%clk 0:15:15.6]} 31... Ke7 {[%clk 0:20:34.7]} 32. Rh1 {[%clk 0:14:32.5]} 32... Kd6 {[%clk 0:20:27]} 33. h4 {[%clk 0:14:19.4]} 33... d3+ {[%clk 0:19:56.8]} 34. Ke3 {[%clk 0:13:52.1]} 34... gxh4 {[%clk 0:19:29.1]} 35. Rxh4 {[%clk 0:13:48.7]} 35... g5 {[%clk 0:19:29.2]} 36. Rh6+ {[%clk 0:13:24.9]} 36... Kd5 {[%clk 0:19:23.6]} 37. Ra6 {[%clk 0:12:25.7]} 37... d2 {[%clk 0:19:10.5]} 38. Kxd2 {[%clk 0:12:19.4]} 38... Kd4 {[%clk 0:19:08.6]} 39. Rd6+ {[%clk 0:12:03.6]} 39... Rd5 {[%clk 0:19:02.5]} 40. Rxd5+ {[%clk 0:11:38.8]} 40... Kxd5 {[%clk 0:19:01]} 41. Ke3 {[%clk 0:11:38]} 41... c4 {[%clk 0:18:58.5]} 42. bxc4+ {[%clk 0:11:25.8]} 42... Kxc4 {[%clk 0:18:58.4]} 43. Kxe4 {[%clk 0:11:11.6]} 43... Kb4 {[%clk 0:18:58.5]} 44. Kf5 {[%clk 0:11:10.5]} 44... Kxa4 {[%clk 0:18:58.1]} 45. Kxg5 {[%clk 0:11:10.6]} 45... Kb3 {[%clk 0:18:58.6]} 46. Kf4 {[%clk 0:10:45.2]} 46... a4 {[%clk 0:18:58.7]} 47. g5 {[%clk 0:10:45.1]} 47... a3 {[%clk 0:18:58.8]} 48. g6 {[%clk 0:10:19.2]} 48... a2 {[%clk 0:18:57.8]} 49. g7 {[%clk 0:10:15.8]} 49... a1=Q {[%clk 0:18:56.6]} 50. g8=Q+ {[%clk 0:10:12.7]} 50... Kb4 {[%clk 0:18:45.9]} 51. Qf8+ {[%clk 0:09:55.6]} 51... Kc4 {[%clk 0:18:40.3]} 52. Qf7+ {[%clk 0:09:44.8]} 52... Kc5 {[%clk 0:18:28.6]} 53. Qe7+ {[%clk 0:09:23.9]} 53... Kc6 {[%clk 0:18:25.2]} 54. Qe4+ {[%clk 0:09:09.1]} 54... Kd7 {[%clk 0:17:30.9]} 55. Qf5+ {[%clk 0:08:35.7]} 55... Kc6 {[%clk 0:16:59]} 56. Qe4+ {[%clk 0:08:22.4]} 56... Kc5 {[%clk 0:16:51.9]} 57. Qe3+ {[%clk 0:08:05.7]} 57... Kd5 {[%clk 0:16:40.7]} 58. Qe4+ {[%clk 0:07:55.6]} 58... Kd6 {[%clk 0:16:35.1]} 59. Qd3+ {[%clk 0:07:40.7]} 59... Ke6 {[%clk 0:16:30]} 60. Qf5+ {[%clk 0:07:32.9]} 60... Kd6 {[%clk 0:16:22]} 61. Qg6+ {[%clk 0:07:11.6]} 61... Kd5 {[%clk 0:16:18.1]} 62. Qe4+ {[%clk 0:07:06.1]} 62... Kd6 {[%clk 0:16:08.4]} 63. Qd3+ {[%clk 0:06:51.6]} 63... Kc5 {[%clk 0:16:00.9]} 64. Qf5+ {[%clk 0:06:41.3]} 64... Kd6 {[%clk 0:15:39.6]} 65. Qg6+ {[%clk 0:06:35.8]} 65... Ke7 {[%clk 0:15:27.4]} 66. Qe4+ {[%clk 0:06:26.6]} 66... Kf6 {[%clk 0:15:15]} 67. Qf5+ {[%clk 0:06:18.3]} 67... Ke7 {[%clk 0:15:08.9]} 68. Qe5+ {[%clk 0:06:09.1]} 68... Qxe5+ {[%clk 0:15:04.8]} 69. Kxe5 {[%clk 0:06:09]} 1/2-1/2

[Event "Live Chess"]
[Site "Chess.com"]
[Date "2021.02.10"]
[Round "1"]
[White "swimgrass"]
[Black "ComfyQueso"]
[Result "1-0"]
[CurrentPosition "1k2R3/ppp2prB/1r6/3p4/3P4/P1P5/2P2PPP/R5K1 b - -"]
[Timezone "UTC"]
[ECO "C01"]
[ECOUrl "https://www.chess.com/openings/French-Defense-Exchange-Variation-3...exd5-4.Nf3"]
[UTCDate "2021.02.10"]
[UTCTime "02:31:55"]
[WhiteElo "1441"]
[BlackElo "1036"]
[TimeControl "2100+2"]
[Termination "swimgrass won by checkmate"]
[StartTime "02:31:55"]
[EndDate "2021.02.10"]
[EndTime "02:46:48"]
[Link "https://www.chess.com/live/game/6507739165"]

1. e4 {[%clk 0:34:58]} 1... e6 {[%clk 0:34:59.3]} 2. d4 {[%clk 0:34:53.2]} 2... d5 {[%clk 0:34:58.5]} 3. exd5 {[%clk 0:34:53]} 3... exd5 {[%clk 0:34:58.3]} 4. Nf3 {[%clk 0:34:49]} 4... Nc6 {[%clk 0:34:55.5]} 5. Bb5 {[%clk 0:34:45.8]} 5... Bd7 {[%clk 0:34:41.5]} 6. Nc3 {[%clk 0:34:43.7]} 6... Nf6 {[%clk 0:34:39.7]} 7. Bg5 {[%clk 0:34:04.7]} 7... Bg4 {[%clk 0:34:09.6]} 8. O-O {[%clk 0:33:40.3]} 8... Bb4 {[%clk 0:34:05.8]} 9. Re1+ {[%clk 0:33:04.5]} 9... Be6 {[%clk 0:33:51.3]} 10. Ne5 {[%clk 0:32:56.1]} 10... Qd6 {[%clk 0:32:55.7]} 11. Bxf6 {[%clk 0:32:40.9]} 11... gxf6 {[%clk 0:32:52.9]} 12. Ng4 {[%clk 0:32:24.3]} 12... O-O-O {[%clk 0:32:42.9]} 13. Nxf6 {[%clk 0:31:43.6]} 13... Qf4 {[%clk 0:31:21.1]} 14. Bxc6 {[%clk 0:31:26.4]} 14... Qxf6 {[%clk 0:30:58.1]} 15. Bb5 {[%clk 0:31:06.8]} 15... Rhg8 {[%clk 0:30:43.5]} 16. a3 {[%clk 0:30:47.4]} 16... Bxc3 {[%clk 0:30:31.8]} 17. bxc3 {[%clk 0:30:24.2]} 17... Bh3 {[%clk 0:30:25.3]} 18. Bf1 {[%clk 0:30:00.8]} 18... Qg6 {[%clk 0:30:12.6]} 19. Qf3 {[%clk 0:29:46.3]} 19... Rd6 {[%clk 0:30:02.8]} 20. Qxh3+ {[%clk 0:29:42]} 20... Kb8 {[%clk 0:29:48.5]} 21. Qe3 {[%clk 0:29:31.2]} 21... Re6 {[%clk 0:29:38.9]} 22. Qd3 {[%clk 0:29:06.1]} 22... Qxd3 {[%clk 0:28:39.5]} 23. Bxd3 {[%clk 0:28:56.2]} 23... Rc6 {[%clk 0:28:32.3]} 24. Bxh7 {[%clk 0:28:43]} 24... Rg7 {[%clk 0:28:29.6]} 25. Re3 {[%clk 0:28:40.5]} 25... Rb6 {[%clk 0:28:24.5]} 26. Re8# {[%clk 0:28:37.6]} 1-0

[Event "Live Chess"]
[Site "Chess.com"]
[Date "2021.02.10"]
[Round "1"]
[White "Phantom_Beast23"]
[Black "sfdeals"]
[Result "0-1"]
[CurrentPosition "r4rk1/ppp2Np1/2np3p/4p3/2B1P1b1/2NPbR2/PPP1KqP1/R2Q4 w - -"]
[Timezone "UTC"]
[ECO "C50"]
[ECOUrl "https://www.chess.com/openings/Giuoco-Piano-Game-Four-Knights-Game"]
[UTCDate "2021.02.10"]
[UTCTime "02:31:57"]
[WhiteElo "1107"]
[BlackElo "1633"]
[TimeControl "2100+2"]
[Termination "sfdeals won by checkmate"]
[StartTime "02:31:57"]
[EndDate "2021.02.10"]
[EndTime "02:56:39"]
[Link "https://www.chess.com/live/game/6507739326"]

1. e4 {[%clk 0:34:58]} 1... e5 {[%clk 0:34:58.5]} 2. Nf3 {[%clk 0:34:56.9]} 2... Nc6 {[%clk 0:34:57.9]} 3. Bc4 {[%clk 0:34:58.2]} 3... Bc5 {[%clk 0:34:54.7]} 4. Nc3 {[%clk 0:34:58.4]} 4... Nf6 {[%clk 0:34:50.5]} 5. Ng5 {[%clk 0:34:59.1]} 5... O-O {[%clk 0:34:40.9]} 6. d3 {[%clk 0:34:59.5]} 6... h6 {[%clk 0:34:16.8]} 7. h4 {[%clk 0:35:00.6]} 7... d6 {[%clk 0:32:49.3]} 8. Bd2 {[%clk 0:34:56.2]} 8... Ng4 {[%clk 0:27:28.4]} 9. Be3 {[%clk 0:34:41.4]} 9... Nxe3 {[%clk 0:24:07.9]} 10. fxe3 {[%clk 0:34:35.4]} 10... Bxe3 {[%clk 0:21:54.5]} 11. Nxf7 {[%clk 0:34:30]} 11... Qf6 {[%clk 0:14:26.7]} 12. Rf1 {[%clk 0:33:35.5]} 12... Qxh4+ {[%clk 0:14:21.3]} 13. Ke2 {[%clk 0:33:24.7]} 13... Bg4+ {[%clk 0:13:18]} 14. Rf3 {[%clk 0:33:06.7]} 14... Qf2# {[%clk 0:13:15.1]} 0-1